[Event "Early-Titled-Tuesday-Blitz-February-06-2024"]
[Site "Chess.com"]
[Date "2024.02.06"]
[Round "5"]
[White "Bodnar_Mykola"]
[Black "ChessQueen"]
[Result "1-0"]
[WhiteElo "2495"]
[BlackElo "2687"]
[TimeControl "180+1"]
[EndTime "8:56:11 PST"]
[Termination "Bodnar_Mykola won by resignation"]

1. e4 {[%clk 0:03:00.9]} 1... c6 {[%clk 0:02:59.7]} 2. d4 {[%clk 0:02:59.9]}
2... d5 {[%clk 0:02:59.9]} 3. exd5 {[%clk 0:03:00.8]} 3... cxd5 {[%clk
0:02:59.8]} 4. Bd3 {[%clk 0:03:01.4]} 4... Nc6 {[%clk 0:02:59.6]} 5. c3 {[%clk
0:03:01]} 5... Nf6 {[%clk 0:02:59.9]} 6. Bf4 {[%clk 0:02:59.3]} 6... g6 {[%clk
0:02:59.6]} 7. h3 {[%clk 0:02:57.3]} 7... Bf5 {[%clk 0:02:59.4]} 8. Nf3 {[%clk
0:02:57.2]} 8... Bxd3 {[%clk 0:02:58.5]} 9. Qxd3 {[%clk 0:02:56.4]} 9... Bg7
{[%clk 0:02:59.1]} 10. Nbd2 {[%clk 0:02:56.3]} 10... O-O {[%clk 0:02:59]} 11.
O-O {[%clk 0:02:53.2]} 11... a6 {[%clk 0:02:56.7]} 12. a4 {[%clk 0:02:50.8]}
12... Re8 {[%clk 0:02:54.9]} 13. Rfe1 {[%clk 0:02:49.8]} 13... Nd7 {[%clk
0:02:53.7]} 14. Nb3 {[%clk 0:02:45.1]} 14... Qb6 {[%clk 0:02:49.1]} 15. Qd1
{[%clk 0:02:36.8]} 15... Rac8 {[%clk 0:02:41]} 16. a5 {[%clk 0:02:28]} 16... Qa7
{[%clk 0:02:40.7]} 17. Qd3 {[%clk 0:02:19.5]} 17... e6 {[%clk 0:02:29.4]} 18.
Bd6 {[%clk 0:02:08.8]} 18... Ne7 {[%clk 0:02:23.9]} 19. Nc5 {[%clk 0:02:03.5]}
19... Nxc5 {[%clk 0:02:20.5]} 20. Bxc5 {[%clk 0:01:56.9]} 20... Qb8 {[%clk
0:02:20.5]} 21. b4 {[%clk 0:01:54.6]} 21... Nf5 {[%clk 0:02:19.1]} 22. g4 {[%clk
0:01:52.8]} 22... Nd6 {[%clk 0:02:18]} 23. Ne5 {[%clk 0:01:50.9]} 23... Nb5
{[%clk 0:02:12.2]} 24. Re2 {[%clk 0:01:46]} 24... Qc7 {[%clk 0:02:11.7]} 25.
Rae1 {[%clk 0:01:44.6]} 25... f6 {[%clk 0:02:01.3]} 26. Nf3 {[%clk 0:01:43.6]}
26... Qc6 {[%clk 0:02:00.8]} 27. g5 {[%clk 0:01:40.8]} 27... Na3 {[%clk
0:01:45.8]} 28. gxf6 {[%clk 0:01:33.2]} 28... Bxf6 {[%clk 0:01:46.7]} 29. Ne5
{[%clk 0:01:33]} 29... Bxe5 {[%clk 0:01:37.7]} 30. Rxe5 {[%clk 0:01:33.9]} 30...
Nc4 {[%clk 0:01:38]} 31. Rg5 {[%clk 0:01:32.6]} 31... Qd7 {[%clk 0:01:34.3]} 32.
h4 {[%clk 0:01:31.4]} 32... Qf7 {[%clk 0:01:21.9]} 33. h5 {[%clk 0:01:24.8]}
33... Qf6 {[%clk 0:01:20]} 34. Qg3 {[%clk 0:01:21.3]} 34... Kg7 {[%clk
0:01:19.2]} 35. f3 {[%clk 0:01:13.7]} 35... Rg8 {[%clk 0:01:14]} 36. Kg2 {[%clk
0:01:11.8]} 36... Kf7 {[%clk 0:01:12.9]} 37. Rh1 {[%clk 0:01:05.1]} 37... gxh5
{[%clk 0:01:06.9]} 38. Rhxh5 {[%clk 0:01:03.5]} 38... Rxg5 {[%clk 0:01:06.9]}
39. Rxg5 {[%clk 0:01:01.3]} 39... Qxg5 {[%clk 0:01:07.2]} 40. Qxg5 {[%clk
0:00:59]} 40... Rg8 {[%clk 0:01:07.8]} 41. Qxg8+ {[%clk 0:00:50.8]} 41... Kxg8
{[%clk 0:01:08.7]} 42. Kg3 {[%clk 0:00:51.2]} 42... Kf7 {[%clk 0:01:09.1]} 43.
Kg4 {[%clk 0:00:51]} 43... Kg6 {[%clk 0:01:09.5]} 44. Kf4 {[%clk 0:00:45.6]}
44... h5 {[%clk 0:01:08.7]} 45. Be7 {[%clk 0:00:45.5]} 45... Nd2 {[%clk
0:01:03]} 46. Ke5 {[%clk 0:00:43.6]} 46... Kf7 {[%clk 0:01:01.4]} 47. Kd6 {[%clk
0:00:40.2]} 47... Nxf3 {[%clk 0:00:59.1]} 48. Bd8 {[%clk 0:00:39.6]} 48... h4
{[%clk 0:00:58.5]} 49. Bxh4 {[%clk 0:00:39.2]} 49... Nxh4 {[%clk 0:00:58.3]} 50.
Kc7 {[%clk 0:00:40.1]} 50... e5 {[%clk 0:00:37.2]} 51. dxe5 {[%clk 0:00:39.3]}
51... Ke6 {[%clk 0:00:34.2]} 52. Kxb7 {[%clk 0:00:39.1]} 52... Nf3 {[%clk
0:00:33.1]} 53. b5 {[%clk 0:00:34]} 53... d4 {[%clk 0:00:28.2]} 54. cxd4 {[%clk
0:00:30.6]} 54... axb5 {[%clk 0:00:28.6]} 55. a6 {[%clk 0:00:29.6]} 55... b4
{[%clk 0:00:29.1]} 56. a7 {[%clk 0:00:27.3]} 56... b3 {[%clk 0:00:29.6]} 57.
a8=Q {[%clk 0:00:27.8]} 57... Nxd4 {[%clk 0:00:28.4]} 58. Qa5 {[%clk 0:00:21.2]}
58... Kf5 {[%clk 0:00:23.3]} 59. Qc3 {[%clk 0:00:20.6]} 59... Kxe5 {[%clk
0:00:20.7]} 60. Kb6 {[%clk 0:00:20.6]} 60... Kd5 {[%clk 0:00:20.9]} 61. Ka5
{[%clk 0:00:19.9]} 61... Ke4 {[%clk 0:00:20.9]} 62. Kb4 {[%clk 0:00:19.1]} 62...
Kd5 {[%clk 0:00:21.3]} 63. Qc4+ {[%clk 0:00:18.5]} 63... Ke5 {[%clk 0:00:20.5]}
64. Kc5 {[%clk 0:00:17.5]} 1-0

[Event "Early-Titled-Tuesday-Blitz-February-06-2024"]
[Site "Chess.com"]
[Date "2024.02.06"]
[Round "5"]
[White "LikeWater"]
[Black "LeRoidesChampions"]
[Result "1-0"]
[WhiteElo "2828"]
[BlackElo "2623"]
[TimeControl "180+1"]
[EndTime "8:56:12 PST"]
[Termination "LikeWater won by resignation"]

1. e4 {[%clk 0:02:59.3]} 1... e6 {[%clk 0:02:55.8]} 2. Qe2 {[%clk 0:02:57]} 2...
c5 {[%clk 0:02:55.6]} 3. g3 {[%clk 0:02:50.6]} 3... Nc6 {[%clk 0:02:55.5]} 4.
Bg2 {[%clk 0:02:50.8]} 4... Nge7 {[%clk 0:02:53.8]} 5. Nf3 {[%clk 0:02:48.1]}
5... g6 {[%clk 0:02:54.3]} 6. O-O {[%clk 0:02:45.6]} 6... Bg7 {[%clk 0:02:54.9]}
7. c3 {[%clk 0:02:33.3]} 7... O-O {[%clk 0:02:55.4]} 8. e5 {[%clk 0:02:27.6]}
8... d6 {[%clk 0:02:51.9]} 9. exd6 {[%clk 0:02:27.1]} 9... Qxd6 {[%clk
0:02:51.4]} 10. Na3 {[%clk 0:02:27]} 10... e5 {[%clk 0:02:49.6]} 11. Nc4 {[%clk
0:02:25.9]} 11... Qc7 {[%clk 0:02:49.9]} 12. d3 {[%clk 0:02:25.2]} 12... Be6
{[%clk 0:02:47.2]} 13. Ng5 {[%clk 0:02:24.1]} 13... Bd5 {[%clk 0:02:45.6]} 14.
a4 {[%clk 0:02:18.2]} 14... Rad8 {[%clk 0:02:42.1]} 15. Ne4 {[%clk 0:02:08.1]}
15... b6 {[%clk 0:02:35.9]} 16. f4 {[%clk 0:02:01.6]} 16... f5 {[%clk
0:02:22.4]} 17. Ng5 {[%clk 0:02:00.5]} 17... Bxg2 {[%clk 0:01:53.2]} 18. Kxg2
{[%clk 0:02:01.3]} 18... Qd7 {[%clk 0:01:50.2]} 19. fxe5 {[%clk 0:01:33.4]}
19... h6 {[%clk 0:01:37.2]} 20. Nf3 {[%clk 0:01:00.7]} 20... Qxd3 {[%clk
0:01:36.7]} 21. Qxd3 {[%clk 0:01:01.2]} 21... Rxd3 {[%clk 0:01:37.6]} 22. a5
{[%clk 0:00:59.3]} 22... b5 {[%clk 0:01:32.6]} 23. Nd6 {[%clk 0:00:59.3]} 23...
a6 {[%clk 0:01:28.1]} 24. Nb7 {[%clk 0:00:59.4]} 24... Rd5 {[%clk 0:01:16.6]}
25. Be3 {[%clk 0:00:54.8]} 25... Nxe5 {[%clk 0:01:00.1]} 26. Nxc5 {[%clk
0:00:50.8]} 26... Nc4 {[%clk 0:00:59.4]} 27. Bg1 {[%clk 0:00:50.4]} 27... Nxb2
{[%clk 0:00:53.4]} 28. Nxa6 {[%clk 0:00:48.4]} 28... Bxc3 {[%clk 0:00:53.1]} 29.
Nc7 {[%clk 0:00:48.5]} 29... Rd7 {[%clk 0:00:47.2]} 30. Nxb5 {[%clk 0:00:47.1]}
30... Bg7 {[%clk 0:00:47.3]} 31. a6 {[%clk 0:00:40.8]} 31... Nc4 {[%clk
0:00:27.1]} 32. Ra2 {[%clk 0:00:36.6]} 32... Nd5 {[%clk 0:00:23.7]} 33. Re1
{[%clk 0:00:29.7]} 33... Nb4 {[%clk 0:00:22.6]} 34. Ra4 {[%clk 0:00:28.5]} 34...
Nd3 {[%clk 0:00:02.3]} 35. Rxc4 {[%clk 0:00:25.1]} 35... Nxe1+ {[%clk
0:00:02.4]} 36. Nxe1 {[%clk 0:00:25.9]} 36... Re8 {[%clk 0:00:03.1]} 37. Bf2
{[%clk 0:00:22.1]} 37... Re2 {[%clk 0:00:02.9]} 38. Kf1 {[%clk 0:00:22.2]} 38...
Ra2 {[%clk 0:00:02.5]} 39. a7 {[%clk 0:00:21.3]} 39... Rdd2 {[%clk 0:00:03.2]}
40. Be3 {[%clk 0:00:19.3]} 40... Rxh2 {[%clk 0:00:03.3]} 41. Rc8+ {[%clk
0:00:18]} 41... Kh7 {[%clk 0:00:03.8]} 42. a8=Q {[%clk 0:00:18.8]} 42... Rh1+
{[%clk 0:00:04.3]} 43. Qxh1 {[%clk 0:00:18]} 43... Ra8 {[%clk 0:00:04.9]} 44.
Rxa8 {[%clk 0:00:15.1]} 1-0

[Event "Early-Titled-Tuesday-Blitz-February-06-2024"]
[Site "Chess.com"]
[Date "2024.02.06"]
[Round "5"]
[White "karinachess1"]
[Black "LiadCuba"]
[Result "1-0"]
[WhiteElo "2631"]
[BlackElo "2452"]
[TimeControl "180+1"]
[EndTime "8:56:12 PST"]
[Termination "karinachess1 won on time"]

1. d4 {[%clk 0:03:00.9]} 1... d5 {[%clk 0:02:59.8]} 2. c4 {[%clk 0:03:01]} 2...
e6 {[%clk 0:03:00.1]} 3. Nc3 {[%clk 0:03:01.1]} 3... Nf6 {[%clk 0:03:00.4]} 4.
cxd5 {[%clk 0:03:01.5]} 4... Nxd5 {[%clk 0:03:01.3]} 5. e4 {[%clk 0:02:58.2]}
5... Nxc3 {[%clk 0:03:01.4]} 6. bxc3 {[%clk 0:02:59.1]} 6... c5 {[%clk 0:03:02]}
7. Nf3 {[%clk 0:02:59.6]} 7... cxd4 {[%clk 0:03:02.5]} 8. cxd4 {[%clk
0:03:00.5]} 8... Bb4+ {[%clk 0:03:03.2]} 9. Bd2 {[%clk 0:03:00.5]} 9... Bxd2+
{[%clk 0:03:04.1]} 10. Qxd2 {[%clk 0:03:01.4]} 10... O-O {[%clk 0:03:05]} 11.
Bc4 {[%clk 0:03:01.4]} 11... Nd7 {[%clk 0:03:05.3]} 12. O-O {[%clk 0:02:53.7]}
12... b6 {[%clk 0:03:05.6]} 13. Rfe1 {[%clk 0:02:39.9]} 13... Bb7 {[%clk
0:03:04.9]} 14. Bd3 {[%clk 0:02:40]} 14... Rc8 {[%clk 0:02:45.7]} 15. Rad1
{[%clk 0:02:36.9]} 15... Re8 {[%clk 0:02:40.8]} 16. Qf4 {[%clk 0:02:31.9]} 16...
Qc7 {[%clk 0:02:22]} 17. Qh4 {[%clk 0:02:27.8]} 17... h6 {[%clk 0:02:16.3]} 18.
h3 {[%clk 0:02:16]} 18... Qb8 {[%clk 0:01:55.4]} 19. Bb5 {[%clk 0:02:03.1]}
19... Bc6 {[%clk 0:01:43.9]} 20. Ba6 {[%clk 0:01:53.3]} 20... Bb7 {[%clk
0:01:43.5]} 21. Bb5 {[%clk 0:01:48.4]} 21... Bc6 {[%clk 0:01:40.5]} 22. a4
{[%clk 0:01:35.4]} 22... Qa8 {[%clk 0:01:33.9]} 23. d5 {[%clk 0:01:28.8]} 23...
exd5 {[%clk 0:01:29.1]} 24. exd5 {[%clk 0:01:28.8]} 24... Rxe1+ {[%clk
0:01:24.7]} 25. Nxe1 {[%clk 0:01:28.8]} 25... Bxb5 {[%clk 0:01:19.4]} 26. axb5
{[%clk 0:01:29.7]} 26... Rd8 {[%clk 0:01:18]} 27. Nc2 {[%clk 0:00:54.7]} 27...
Nf6 {[%clk 0:01:05.4]} 28. Nb4 {[%clk 0:00:54.8]} 28... Rd7 {[%clk 0:00:53.5]}
29. Qc4 {[%clk 0:00:50.6]} 29... Qe8 {[%clk 0:00:47.6]} 30. Qc6 {[%clk
0:00:37.4]} 30... Qe4 {[%clk 0:00:38.3]} 31. Qc3 {[%clk 0:00:30.6]} 31... Qe2
{[%clk 0:00:34.5]} 32. Qd3 {[%clk 0:00:27.6]} 32... Qb2 {[%clk 0:00:29]} 33. Qd4
{[%clk 0:00:21.6]} 33... Qb3 {[%clk 0:00:24]} 34. d6 {[%clk 0:00:18.4]} 34...
Qa4 {[%clk 0:00:20]} 35. Nc6 {[%clk 0:00:10]} 35... Qxb5 {[%clk 0:00:17.7]} 36.
Ne7+ {[%clk 0:00:10.4]} 36... Kh8 {[%clk 0:00:17.7]} 37. Rc1 {[%clk 0:00:09.7]}
37... Rd8 {[%clk 0:00:17]} 38. g3 {[%clk 0:00:05.3]} 38... Qd7 {[%clk
0:00:13.6]} 39. Rd1 {[%clk 0:00:04.9]} 39... Qe6 {[%clk 0:00:13]} 40. Nc6 {[%clk
0:00:04.5]} 40... Rd7 {[%clk 0:00:11.8]} 41. Ne5 {[%clk 0:00:05]} 41... Rd8
{[%clk 0:00:10.9]} 42. h4 {[%clk 0:00:05.6]} 42... Nd7 {[%clk 0:00:10.2]} 43.
Nc6 {[%clk 0:00:06]} 43... Re8 {[%clk 0:00:09.9]} 44. Nxa7 {[%clk 0:00:06.3]}
44... Ne5 {[%clk 0:00:07.4]} 45. Kg2 {[%clk 0:00:05.6]} 45... Qd7 {[%clk
0:00:06.6]} 46. Qxb6 {[%clk 0:00:04]} 46... Qg4 {[%clk 0:00:04.2]} 47. Qd4
{[%clk 0:00:03.6]} 47... Qf3+ {[%clk 0:00:04.1]} 48. Kh2 {[%clk 0:00:04.2]}
48... Qb7 {[%clk 0:00:03.2]} 49. d7 {[%clk 0:00:03.7]} 49... Nf3+ {[%clk
0:00:02]} 50. Kh3 {[%clk 0:00:03.5]} 50... Rd8 {[%clk 0:00:02.1]} 51. Qc5 {[%clk
0:00:03]} 1-0

[Event "Early-Titled-Tuesday-Blitz-February-06-2024"]
[Site "Chess.com"]
[Date "2024.02.06"]
[Round "5"]
[White "blitzking1729"]
[Black "Sam_ChessMood"]
[Result "0-1"]
[WhiteElo "2741"]
[BlackElo "2914"]
[TimeControl "180+1"]
[EndTime "8:56:13 PST"]
[Termination "Sam_ChessMood won on time"]

1. c4 {[%clk 0:02:59.8]} 1... e5 {[%clk 0:02:58.5]} 2. Nc3 {[%clk 0:02:59.7]}
2... Bb4 {[%clk 0:02:57.8]} 3. Nd5 {[%clk 0:02:57.9]} 3... Be7 {[%clk
0:02:57.7]} 4. d4 {[%clk 0:02:57]} 4... d6 {[%clk 0:02:57.5]} 5. e4 {[%clk
0:02:54.5]} 5... Nf6 {[%clk 0:02:56.2]} 6. Nxe7 {[%clk 0:02:52.8]} 6... Qxe7
{[%clk 0:02:55.8]} 7. f3 {[%clk 0:02:52.5]} 7... O-O {[%clk 0:02:55.2]} 8. Ne2
{[%clk 0:02:48]} 8... Nh5 {[%clk 0:02:50.5]} 9. g4 {[%clk 0:02:29.7]} 9... Qh4+
{[%clk 0:02:48.6]} 10. Kd2 {[%clk 0:02:29.9]} 10... Nf6 {[%clk 0:02:44]} 11. Qe1
{[%clk 0:02:29.5]} 11... Qh6+ {[%clk 0:02:36.5]} 12. Kc3 {[%clk 0:02:18.6]}
12... Qg6 {[%clk 0:02:35.6]} 13. h3 {[%clk 0:02:11.9]} 13... b5 {[%clk
0:02:29.8]} 14. cxb5 {[%clk 0:02:07.4]} 14... a6 {[%clk 0:02:27.5]} 15. d5
{[%clk 0:01:48.4]} 15... axb5 {[%clk 0:02:23.2]} 16. Ng3 {[%clk 0:01:48.9]}
16... c6 {[%clk 0:02:13.8]} 17. h4 {[%clk 0:01:28.9]} 17... b4+ {[%clk
0:01:53.9]} 18. Kc2 {[%clk 0:01:16.5]} 18... Nxd5 {[%clk 0:01:39.9]} 19. h5
{[%clk 0:01:13.8]} 19... Qe6 {[%clk 0:01:33.9]} 20. exd5 {[%clk 0:01:14.1]}
20... cxd5 {[%clk 0:01:33.8]} 21. Qxb4 {[%clk 0:01:11.4]} 21... Nc6 {[%clk
0:01:32.2]} 22. Qc3 {[%clk 0:01:07.3]} 22... Nd4+ {[%clk 0:01:32.4]} 23. Kd1
{[%clk 0:01:07.2]} 23... Bd7 {[%clk 0:01:25.2]} 24. Ne2 {[%clk 0:00:41.1]} 24...
Nb5 {[%clk 0:01:15]} 25. Qd2 {[%clk 0:00:39.6]} 25... d4 {[%clk 0:01:13.8]} 26.
Ng3 {[%clk 0:00:37.7]} 26... Nc7 {[%clk 0:01:07.3]} 27. Ke1 {[%clk 0:00:33.2]}
27... Qd5 {[%clk 0:00:57.1]} 28. Kf2 {[%clk 0:00:30.8]} 28... f5 {[%clk
0:00:50.9]} 29. Qc2 {[%clk 0:00:29.4]} 29... Kh8 {[%clk 0:00:21.1]} 30. gxf5
{[%clk 0:00:23.7]} 30... Na6 {[%clk 0:00:16.6]} 31. Bd2 {[%clk 0:00:21.2]} 31...
Nc5 {[%clk 0:00:16.2]} 32. Bc4 {[%clk 0:00:17.3]} 32... Qc6 {[%clk 0:00:09.5]}
33. b4 {[%clk 0:00:17.7]} 33... d5 {[%clk 0:00:07.3]} 34. bxc5 {[%clk 0:00:17]}
34... dxc4 {[%clk 0:00:07.7]} 35. Qxc4 {[%clk 0:00:17.7]} 35... Bxf5 {[%clk
0:00:07.9]} 36. Nxf5 {[%clk 0:00:07.8]} 36... Rxf5 {[%clk 0:00:08.7]} 37. Rh3
{[%clk 0:00:08]} 37... Raf8 {[%clk 0:00:08.5]} 38. Qd3 {[%clk 0:00:06.9]} 38...
e4 {[%clk 0:00:06.7]} 39. Qxd4 {[%clk 0:00:07]} 39... Rd5 {[%clk 0:00:06.9]} 40.
Qe3 {[%clk 0:00:05.6]} 40... Rd3 {[%clk 0:00:06.4]} 41. Qe2 {[%clk 0:00:04.4]}
41... Rdxf3+ {[%clk 0:00:03.4]} 42. Rxf3 {[%clk 0:00:04]} 42... Rxf3+ {[%clk
0:00:04.3]} 43. Ke1 {[%clk 0:00:03.9]} 43... Qxc5 {[%clk 0:00:03.8]} 44. Kd1
{[%clk 0:00:03.5]} 44... Qg1+ {[%clk 0:00:03]} 45. Be1 {[%clk 0:00:03.4]} 45...
Qd4+ {[%clk 0:00:02.9]} 0-1

[Event "Early-Titled-Tuesday-Blitz-February-06-2024"]
[Site "Chess.com"]
[Date "2024.02.06"]
[Round "5"]
[White "deribas12345"]
[Black "artin10862"]
[Result "1/2-1/2"]
[WhiteElo "2519"]
[BlackElo "2929"]
[TimeControl "180+1"]
[EndTime "8:56:15 PST"]
[Termination "Game drawn by agreement"]

1. d4 {[%clk 0:03:00.9]} 1... Nf6 {[%clk 0:02:59.4]} 2. c4 {[%clk 0:03:00.6]}
2... g6 {[%clk 0:02:59.9]} 3. Nc3 {[%clk 0:03:00.9]} 3... Bg7 {[%clk 0:03:00.3]}
4. e4 {[%clk 0:03:01.1]} 4... d6 {[%clk 0:03:00.8]} 5. Nge2 {[%clk 0:03:01.3]}
5... O-O {[%clk 0:02:57.2]} 6. Ng3 {[%clk 0:03:01.4]} 6... h5 {[%clk 0:02:55]}
7. Be2 {[%clk 0:03:00.9]} 7... a5 {[%clk 0:02:50.2]} 8. O-O {[%clk 0:02:59.2]}
8... h4 {[%clk 0:02:47.8]} 9. Nh1 {[%clk 0:02:58.8]} 9... e5 {[%clk 0:02:47.9]}
10. d5 {[%clk 0:02:54.1]} 10... Nfd7 {[%clk 0:02:35.6]} 11. g4 {[%clk
0:02:44.6]} 11... Nc5 {[%clk 0:02:25.9]} 12. f3 {[%clk 0:02:40]} 12... f5 {[%clk
0:02:24]} 13. gxf5 {[%clk 0:02:32.8]} 13... gxf5 {[%clk 0:02:23.8]} 14. exf5
{[%clk 0:02:33.1]} 14... Bxf5 {[%clk 0:02:23.4]} 15. Nf2 {[%clk 0:02:33]} 15...
Nbd7 {[%clk 0:02:22.1]} 16. Kh1 {[%clk 0:02:32]} 16... Qf6 {[%clk 0:02:14.9]}
17. Rg1 {[%clk 0:02:30.2]} 17... Kh7 {[%clk 0:02:13]} 18. Bg5 {[%clk 0:02:24]}
18... Qf7 {[%clk 0:02:11.8]} 19. Bxh4 {[%clk 0:02:18.8]} 19... Bh6 {[%clk
0:02:11.2]} 20. Nfe4 {[%clk 0:01:46]} 20... Qh5 {[%clk 0:02:01.1]} 21. Qe1
{[%clk 0:01:07.5]} 21... Bf4 {[%clk 0:01:58]} 22. Qf2 {[%clk 0:00:41.1]} 22...
Rg8 {[%clk 0:01:57.5]} 23. Rxg8 {[%clk 0:00:40.4]} 23... Rxg8 {[%clk 0:01:56.7]}
24. Rg1 {[%clk 0:00:32.4]} 24... Rxg1+ {[%clk 0:01:30.6]} 25. Kxg1 {[%clk
0:00:33.3]} 25... Qh6 {[%clk 0:01:31]} 26. Kh1 {[%clk 0:00:29.9]} 26... b6
{[%clk 0:01:23.3]} 27. Bd8 {[%clk 0:00:15.4]} 27... Nxe4 {[%clk 0:00:58.7]} 28.
fxe4 {[%clk 0:00:12.2]} 28... Bh3 {[%clk 0:00:58]} 29. Qh4 {[%clk 0:00:10.4]}
29... Qxh4 {[%clk 0:00:42.2]} 30. Bxh4 {[%clk 0:00:11.3]} 30... Nc5 {[%clk
0:00:35.8]} 31. Bd8 {[%clk 0:00:10.7]} 31... Bd2 {[%clk 0:00:34.9]} 32. Bxc7
{[%clk 0:00:09.6]} 32... Bxc3 {[%clk 0:00:34.8]} 33. bxc3 {[%clk 0:00:09.4]}
33... Nxe4 {[%clk 0:00:35.1]} 34. Bd3 {[%clk 0:00:09.8]} 34... Bf5 {[%clk
0:00:35.7]} 35. Bxe4 {[%clk 0:00:10.2]} 35... Bxe4+ {[%clk 0:00:36.6]} 36. Kg1
{[%clk 0:00:11.1]} 36... Bd3 {[%clk 0:00:37.3]} 37. Bxd6 {[%clk 0:00:09.6]}
37... Bxc4 {[%clk 0:00:37.6]} 38. Bxe5 {[%clk 0:00:10]} 38... Bxd5 {[%clk
0:00:37.6]} 39. Bc7 {[%clk 0:00:07.3]} 39... b5 {[%clk 0:00:37.4]} 40. a3 {[%clk
0:00:06.4]} 40... a4 {[%clk 0:00:37.8]} 41. Kf2 {[%clk 0:00:06.9]} 41... Kg6
{[%clk 0:00:38.4]} 42. Ke3 {[%clk 0:00:07.3]} 42... Bc4 {[%clk 0:00:38.8]} 43.
Kf4 {[%clk 0:00:07.1]} 43... Kh5 {[%clk 0:00:39.7]} 44. Kg3 {[%clk 0:00:05.8]}
44... Kg5 {[%clk 0:00:40.1]} 45. Kf3 {[%clk 0:00:05.9]} 45... Kh4 {[%clk
0:00:40.3]} 46. Bg3+ {[%clk 0:00:05.3]} 46... Kh3 {[%clk 0:00:40.9]} 47. Kf4
{[%clk 0:00:05.8]} 47... Bd3 {[%clk 0:00:37.3]} 48. Ke3 {[%clk 0:00:06.1]} 48...
Bg6 {[%clk 0:00:36.8]} 49. Kd4 {[%clk 0:00:06.5]} 49... Bf7 {[%clk 0:00:36.4]}
50. Kc5 {[%clk 0:00:06.4]} 50... Bc4 {[%clk 0:00:36.8]} 51. Kb4 {[%clk
0:00:07.1]} 51... Kg4 {[%clk 0:00:37.3]} 52. Bd6 {[%clk 0:00:07.5]} 52... Kh4
{[%clk 0:00:36.7]} 53. Kc5 {[%clk 0:00:07.4]} 53... Kh3 {[%clk 0:00:37.6]} 54.
Kb4 {[%clk 0:00:07.5]} 54... Kg2 {[%clk 0:00:38.1]} 55. Bc7 {[%clk 0:00:07.9]}
55... Kh3 {[%clk 0:00:38.2]} 56. Bd6 {[%clk 0:00:08.5]} 56... Kh4 {[%clk
0:00:38.3]} 57. Bc7 {[%clk 0:00:09.1]} 57... Kg4 {[%clk 0:00:38.7]} 58. Bd6
{[%clk 0:00:09.7]} 58... Bd3 {[%clk 0:00:39.4]} 59. Bc7 {[%clk 0:00:09.8]} 59...
Kg5 {[%clk 0:00:39.9]} 60. Bb8 {[%clk 0:00:10.2]} 60... Kh4 {[%clk 0:00:33.7]}
1/2-1/2

[Event "Early-Titled-Tuesday-Blitz-February-06-2024"]
[Site "Chess.com"]
[Date "2024.02.06"]
[Round "5"]
[White "KhazhatulyAlikhan"]
[Black "Szachulec75"]
[Result "1-0"]
[WhiteElo "2401"]
[BlackElo "2214"]
[TimeControl "180+1"]
[EndTime "8:56:15 PST"]
[Termination "KhazhatulyAlikhan won by resignation"]

1. e4 {[%clk 0:02:54.1]} 1... d6 {[%clk 0:02:53.7]} 2. d4 {[%clk 0:02:54.3]}
2... Nf6 {[%clk 0:02:53.4]} 3. Nc3 {[%clk 0:02:54.3]} 3... c6 {[%clk 0:02:52.8]}
4. Nf3 {[%clk 0:02:50.8]} 4... Bg4 {[%clk 0:02:49.3]} 5. Be2 {[%clk 0:02:50.9]}
5... Bxf3 {[%clk 0:02:44.8]} 6. Bxf3 {[%clk 0:02:51.8]} 6... Nbd7 {[%clk
0:02:42.1]} 7. O-O {[%clk 0:02:51.1]} 7... e5 {[%clk 0:02:42.5]} 8. Bg5 {[%clk
0:02:50]} 8... Be7 {[%clk 0:02:42.7]} 9. dxe5 {[%clk 0:02:48.3]} 9... dxe5
{[%clk 0:02:41.6]} 10. Qd2 {[%clk 0:02:47.7]} 10... O-O {[%clk 0:02:39.8]} 11.
Rad1 {[%clk 0:02:47.5]} 11... Qc7 {[%clk 0:02:36.5]} 12. Rfe1 {[%clk 0:02:43.3]}
12... Rad8 {[%clk 0:02:29.4]} 13. Qc1 {[%clk 0:02:43.5]} 13... Rfe8 {[%clk
0:02:23.8]} 14. a3 {[%clk 0:02:39.1]} 14... Nf8 {[%clk 0:02:24]} 15. h3 {[%clk
0:02:37.1]} 15... Ne6 {[%clk 0:02:24.4]} 16. Be3 {[%clk 0:02:37.6]} 16... b6
{[%clk 0:02:22.3]} 17. Rxd8 {[%clk 0:02:34.6]} 17... Rxd8 {[%clk 0:02:21.3]} 18.
Rd1 {[%clk 0:02:35.5]} 18... Bc5 {[%clk 0:02:19.6]} 19. Bxc5 {[%clk 0:02:30.9]}
19... Nxc5 {[%clk 0:02:18]} 20. Rd2 {[%clk 0:02:31.5]} 20... Rxd2 {[%clk
0:02:06.1]} 21. Qxd2 {[%clk 0:02:30.7]} 21... Ne6 {[%clk 0:02:03.5]} 22. Be2
{[%clk 0:02:25.3]} 22... Nd4 {[%clk 0:01:55.3]} 23. Bc4 {[%clk 0:02:22.4]} 23...
Qd6 {[%clk 0:01:49.8]} 24. Qd3 {[%clk 0:02:18.7]} 24... Nd7 {[%clk 0:01:46.8]}
25. b4 {[%clk 0:01:37.2]} 25... g6 {[%clk 0:01:29.7]} 26. Nd1 {[%clk 0:01:26.4]}
26... b5 {[%clk 0:01:12.6]} 27. Ba2 {[%clk 0:01:23.5]} 27... c5 {[%clk 0:01:13]}
28. c3 {[%clk 0:01:12.7]} 28... c4 {[%clk 0:01:12.9]} 29. Qe3 {[%clk 0:00:55]}
29... Nc2 {[%clk 0:01:03.9]} 30. Qc1 {[%clk 0:00:51.7]} 30... Nxa3 {[%clk
0:00:45.3]} 31. Ne3 {[%clk 0:00:49.2]} 31... Qa6 {[%clk 0:00:40.5]} 32. Qd2
{[%clk 0:00:32.3]} 32... Nf6 {[%clk 0:00:37.4]} 33. f3 {[%clk 0:00:22.7]} 33...
Kg7 {[%clk 0:00:37.3]} 34. Kf2 {[%clk 0:00:16]} 34... h6 {[%clk 0:00:32.8]} 35.
Qc1 {[%clk 0:00:13.2]} 35... Qa4 {[%clk 0:00:31.6]} 36. Qd2 {[%clk 0:00:10.1]}
36... a5 {[%clk 0:00:30.7]} 37. bxa5 {[%clk 0:00:07.1]} 37... Qxa5 {[%clk
0:00:28.8]} 38. Nd5 {[%clk 0:00:07.7]} 38... Nxd5 {[%clk 0:00:18.4]} 39. exd5
{[%clk 0:00:08.6]} 39... Qc7 {[%clk 0:00:14]} 40. d6 {[%clk 0:00:08.2]} 40...
Qd7 {[%clk 0:00:13.7]} 41. Ke2 {[%clk 0:00:05.8]} 41... Kf6 {[%clk 0:00:11.7]}
42. Kd1 {[%clk 0:00:05.9]} 42... Ke6 {[%clk 0:00:12]} 43. Kc1 {[%clk 0:00:06]}
43... Qxd6 {[%clk 0:00:12.3]} 44. Qxd6+ {[%clk 0:00:04.4]} 44... Kxd6 {[%clk
0:00:12.4]} 45. Kb2 {[%clk 0:00:05.1]} 45... b4 {[%clk 0:00:11.7]} 46. cxb4
{[%clk 0:00:06]} 46... Nb5 {[%clk 0:00:10.8]} 47. Bxc4 {[%clk 0:00:06.4]} 47...
Nc7 {[%clk 0:00:11.7]} 48. Bxf7 {[%clk 0:00:06.4]} 48... g5 {[%clk 0:00:11.4]}
49. Bc4 {[%clk 0:00:06.5]} 49... Kc6 {[%clk 0:00:10.6]} 50. Kc3 {[%clk
0:00:06.5]} 1-0